{"text_format":"3","workbook":"xlsx","n_sheets":1,"sheets":["Регистър на пропътувано разс..."],"not_rendered":{"defined_names":6},"read":"whole","date_system":"1900"}

{"sheet":"Регистър на пропътувано разс...","index":0,"n_rows":20,"n_cols":9,"rows_kept":20}
[null,"Регистър на пропътувано разстояние и отчет на разходите"]
[]
[null,"Име на служител",null,"Ставка на километър",{"v":0.27,"d":"0.27 лв."}]
[null,"ИД на служител",null,"За период",{"$f":"\"От \"&TEXT(MIN(B9:B19),\"d.M.yyyy г.\")&\" до \"&TEXT(MAX(B9:B19),\"d.M.yyyy г.\")","v":"От 28.7.2017 г. до 29.7.2017 г."}]
[null,"Описание на превозното средство",null,"Общо пропътувано разстояние",{"$f":"Пропътувано_разстояние_Общо","v":10}]
[null,"Разрешено от",null,"Обща сума за възстановяване на разходите",{"$f":"Възстановяване_на_разходи_Общо","v":{"v":2.7,"d":"2.70 лв."}}]
[]
[null,"Дата","Начално местоположение","Местоназначение","Описание/Бележки","Начало на одометъра","Край на одометъра","Пропътувано разстояние","Възстановяване на разходи"]
[null,{"$f":"TODAY()","v":"2017-07-28"},"Домашен офис","Northwind Traders","Среща с клиент",36098,36103,{"$f":"IFERROR(IF(OR(ISBLANK(F9),ISBLANK(G9)),0,G9-F9), \"\")","v":5},{"$f":"IFERROR(H9*$E$3, \"\")","v":{"v":1.35,"d":"1.35 лв."}}]
[null,{"$f":"TODAY()+1","v":"2017-07-29"},"Northwind Traders","Домашен офис","Среща с клиент",36103,36108,{"$f":"IFERROR(IF(OR(ISBLANK(F10),ISBLANK(G10)),0,G10-F10), \"\")","v":5},{"$f":"IFERROR(H10*$E$3, \"\")","v":{"v":1.35,"d":"1.35 лв."}}]
[{"$nulls":7},0,{"v":0,"d":"0.00 лв."}]
[{"$nulls":7},0,{"v":0,"d":"0.00 лв."}]
[{"$nulls":7},0,{"v":0,"d":"0.00 лв."}]
[{"$nulls":7},0,{"v":0,"d":"0.00 лв."}]
[{"$nulls":7},0,{"v":0,"d":"0.00 лв."}]
[{"$nulls":7},0,{"v":0,"d":"0.00 лв."}]
[{"$nulls":7},0,{"v":0,"d":"0.00 лв."}]
[{"$nulls":7},0,{"v":0,"d":"0.00 лв."}]
[{"$nulls":7},0,{"v":0,"d":"0.00 лв."}]
[{"$nulls":6},"Общи суми",{"$f":"SUBTOTAL(109,Разходи[Пропътувано разстояние])","v":10},{"$f":"SUBTOTAL(109,Разходи[Възстановяване на разходи])","v":{"v":2.7,"d":"2.70 лв."}}]